fUST/lending_fUST_20251019
["ID","MTS","AMOUNT","RATE_DAILY","PERIOD"]
[391793797,1760830037523,-527.74046386,0.000286,2]
[391793798,1760830037541,-695.6798062,0.000286,2]
[391793799,1760830037559,-422.0,0.00028605,2]
[391793800,1760830037577,-428.99472955,0.0002866,2]
[391793801,1760830037597,-1999.0,0.00028767,2]
[391793802,1760830037618,-2796.29479453,0.000288,2]
[391793803,1760830037638,-2965.94224491,0.000288,2]
[391793804,1760830037659,-2796.29479453,0.000291,2]
[391793805,1760830037679,-2965.94224491,0.000291,2]
[391793806,1760830037700,-342.0,0.00029148,2]
[391793807,1760830037720,-451.84615924,0.000293,2]
[391793808,1760830037741,-2796.29479453,0.000294,2]
[391793809,1760830037762,-2965.94224491,0.000294,2]
[391793810,1760830037785,-182.74,0.00029498,2]
[391793811,1760830037807,-2796.29479453,0.000297,2]
[391793812,1760830037827,-2965.94224491,0.000297,2]
[391793813,1760830037846,-614.89,0.00029716,3]
[391793814,1760830037868,-153.72,0.00029716,3]
[391793815,1760830037889,-1999.0,0.00029726,4]
[391793816,1760830037911,-2796.29479453,0.0003,2]
[391793817,1760830037937,-598.27490103,0.0003,2]
[391793818,1760830049124,-2367.66734388,0.0003,2]
[391793819,1760830049144,-532.13,0.0003,2]
[391793820,1760830049166,-307.44,0.00030127,3]
[391793821,1760830049186,-185.940091,0.00030137,120]
[391793822,1760830049208,-1999.0,0.00030684,6]
[391793823,1760830049232,-274.1,0.00030839,2]
[391793824,1760830049254,-1229.78,0.00031086,3]
[391793825,1760830049277,-307.44,0.00031086,3]
[391793826,1760830049299,-9137.26713336,0.0003135,2]
[391793827,1760830049322,-4599.45722191,0.0003135,2]
[391793828,1760830049343,-614.88,0.00031497,3]
[391793829,1760830049363,-1999.0,0.00031643,8]
[391793830,1760830049385,-461.19,0.00031801,3]
[391793831,1760830049410,-451.84615923,0.00031811,2]
[391793832,1760830049434,-365.47,0.0003218,2]
[391793833,1760830049456,-1999.0,0.00032602,10]
[391793834,1760830049476,-411.0,0.00033032,2]
[391793835,1760830049496,-439.371994,0.00033165,2]
[391793836,1760830049521,-456.84,0.00033521,2]
[391793837,1760830049540,-1999.0,0.00033561,120]
[391793838,1760830049559,-150.0,0.00034123,2]
[391793839,1760830049580,-500.0,0.00034295,5]
[391793840,1760830049600,-451.84615923,0.00034322,2]
[391793841,1760830049623,-168.0,0.00034476,2]
[391793842,1760830049644,-1999.0,0.0003452,120]
[391793843,1760830049667,-168.0,0.00034546,2]
[391793844,1760830049689,-548.21,0.00034861,2]
[391793845,1760830049712,-168.0,0.00035133,2]
[391793846,1760830049732,-185.940091,0.0003516,120]
[391793847,1760830049755,-168.0,0.00035397,2]
[391793848,1760830049777,-168.0,0.00035459,2]
[391793849,1760830049799,-1999.0,0.00035479,120]
[391793850,1760830049821,-620.05554988,0.00035828,2]
[391793851,1760830049841,-1116.09998978,0.00035828,2]
[391793852,1760830049861,-1984.17775962,0.00035828,2]
[391793853,1760830049881,-2217.85050711,0.00035828,2]
[391793854,1760830050106,-882.42724229,0.00035828,2]
[391793855,1760830050129,-411.0,0.00036032,2]
[391793856,1760830050154,-308.0,0.00036067,7]
[391793857,1760830050178,-308.0,0.00036068,2]
[391793858,1760830050200,-309.0,0.00036082,120]
[391793859,1760830050221,-500.0,0.000361,5]
[391793860,1760830050243,-309.0,0.00036185,7]
[391793861,1760830050268,-639.57,0.00036202,2]
[391793862,1760830050288,-1999.0,0.00036438,120]
[391793863,1760830050311,-308.0,0.00036715,120]
[391793864,1760830050331,-451.84615923,0.00036833,2]
[391793865,1760830050352,-287.24118119,0.00037,120]
[391793866,1760830050373,-1400.0,0.00037072,7]
[391793867,1760830050396,-150.0,0.00037123,2]
[391793868,1760830050419,-308.0,0.0003721,2]
[391793869,1760830050442,-309.0,0.00037274,2]
[391793870,1760830050462,-532.13,0.000373,2]
[391793871,1760830050483,-1999.0,0.00037397,120]
[391793872,1760830050509,-730.94,0.00037543,2]
[391793873,1760830050529,-1687.1111897,0.00037728,7]
[391793874,1760830050549,-151.0,0.000378,20]
[391793875,1760830050575,-1400.0,0.00037894,7]
[391793876,1760830050594,-500.0,0.0003798,30]
[391793877,1760830050614,-500.0,0.0003798,30]
[391793878,1760830050634,-150.0,0.00037999,2]
[391793879,1760830050654,-500.0,0.00038,5]
[391793880,1760830050677,-308.0,0.00038235,2]
[391793881,1760830050697,-1999.0,0.00038356,120]
[391793882,1760830050718,-1305.4069586,0.0003836,2]
[391793883,1760830050737,-2997.58812108,0.000385,120]
[391793884,1760830050760,-308.0,0.00038645,2]
[391793885,1760830050782,-9137.26713336,0.00038706,3]
[391793886,1760830050804,-4599.45722191,0.00038706,3]
[391793887,1760830050825,-1400.0,0.00038716,7]
[391793888,1760830050844,-1643.8158,0.0003884,12]
[391793889,1760830050864,-1000.0,0.0003886,12]
[391793890,1760830050884,-1000.0,0.0003888,12]
[391793891,1760830050905,-1167.214609,0.0003888,12]
[391793892,1760830050933,-822.31,0.00038884,2]
[391793893,1760830050953,-1000.0,0.000389,12]
[391793894,1760830050974,-1000.0,0.000389,12]
[391793895,1760830050994,-1631.445633,0.000389,28]
[391793896,1760830051152,-8791.21499283,0.000389,2]
[391793897,1760830051173,-151.0,0.000389,19]
[391793898,1760830051197,-902.0,0.00038952,7]
[391793899,1760830051217,-553.64373807,0.00038989,3]
[391793900,1760830051236,-574.12855637,0.00038989,3]
[391793901,1760830051257,-595.37131296,0.00038989,3]
[391793902,1760830051278,-617.40005154,0.00038989,3]
[391793903,1760830051299,-640.24385345,0.00038989,3]
[391793904,1760830051319,-663.93287602,0.00038989,3]
[391793905,1760830051339,-688.49839244,0.00038989,3]
[391793906,1760830051359,-713.97283296,0.00038989,3]
[391793907,1760830051380,-740.38982778,0.00038989,3]
[391793908,1760830051401,-767.7842514,0.00038989,3]
[391793909,1760830051425,-796.19226871,0.00038989,3]
[391793910,1760830051445,-825.65138265,0.00038989,3]
[391793911,1760830051468,-18274.5342667,0.0003899,3]
[391793912,1760830051491,-9198.91444382,0.0003899,3]
[391793913,1760830051510,-74984.78719534,0.00039,30]
[391793914,1760830051529,-211.92108182,0.00039,120]
[391793915,1760830051548,-500.0,0.00039,30]
[391793916,1760830051568,-151.0,0.00039,120]
[391793917,1760830051588,-216.529015,0.00039,120]
[391793918,1760830051608,-411.0,0.00039032,2]
[391793919,1760830051631,-168.0,0.00039104,7]
[391793920,1760830051651,-8791.21499283,0.00039122,2]
[391793921,1760830051673,-374.322106,0.00039269,2]
[391793922,1760830051695,-188.0,0.00039274,2]
[391793923,1760830051718,-300.0,0.0003928,90]
[391793924,1760830051742,-300.0,0.0003928,90]
[391793925,1760830051766,-300.0,0.0003928,90]
[391793926,1760830051791,-300.0,0.0003928,90]
[391793927,1760830051815,-300.0,0.0003928,90]
[391793928,1760830051838,-300.0,0.0003928,90]
[391793929,1760830051864,-300.0,0.0003928,90]
[391793930,1760830051888,-300.0,0.0003928,90]
[391793931,1760830051913,-300.0,0.0003928,90]
[391793932,1760830051939,-1999.0,0.00039315,120]
[391793933,1760830051959,-8430.02046674,0.00039344,2]
[391793934,1760830051980,-451.84615923,0.00039344,2]
[391793935,1760830052003,-8791.21499283,0.00039344,2]
[391793936,1760830052025,-1762.1731111,0.000394,120]
[391793937,1760830052044,-8105.14,0.000394,14]
[391793938,1760830052064,-221.23451577,0.00039434,6]
[391793939,1760830052084,-137059.007,0.00039434,3]
[391793940,1760830052106,-68991.8583287,0.00039434,3]
[391793941,1760830052128,-375268.26223658,0.00039444,7]
[391793945,1760830120539,5239.63481302,0.00024142,2]
[391793946,1760830120563,10000.01,0.00024142,2]
[391793947,1760830120586,10000.01,0.00024142,2]
[391793948,1760830120608,10000.01,0.00024142,2]
[391793950,1760830228867,150.0,0.0002394,2]
[391793963,1760830231826,-422.47176806,0.00024142,2]
[391793964,1760830231839,-442.0666617,0.00024142,2]
[391793965,1760830231925,-580.71822032,0.00024142,2]
[391793966,1760830231934,-150.0,0.0002508,2]
[391793967,1760830231944,-169.23,0.0002622,2]
[391793969,1760830231953,-225.64,0.0002736,2]
[391793970,1760830231962,-214.60001445,0.000275,2]
[391793971,1760830231971,-211.63900233,0.000275,2]
[391793972,1760830231986,-214.60001445,0.000278,2]
[391793973,1760830231996,-214.60001445,0.000281,2]
[391793974,1760830232005,-214.60001445,0.000284,2]
[391793975,1760830232015,-282.05,0.000285,2]
[391793976,1760830232026,-160.0,0.00028597,2]
[391793977,1760830232036,-214.60001445,0.000286,2]
[391793978,1760830232046,-1413.72198329,0.000295,2]
[391793979,1760830232056,-338.47,0.0002964,2]
[391793980,1760830232066,-394.88,0.0003078,2]
[391793981,1760830232076,-179.64071856,0.00031697,7]
[391793982,1760830232085,-451.29,0.0003192,2]
[391793983,1760830232095,-300.0,0.00033936,2]
[391793984,1760830232109,-500.0,0.00033937,7]
[391793985,1760830232119,-437.95427116,0.00033937,2]
[391793986,1760830232129,-176.46406398,0.00033937,7]
[391793987,1760830232139,-500.0,0.00033937,7]
[391793988,1760830232150,-227.25780543,0.00033937,7]
[391793989,1760830232167,-500.0,0.00033937,7]
[391793990,1760830232178,-500.0,0.00033937,7]
[391793991,1760830232187,-500.0,0.00033937,7]
[391793992,1760830232196,-646.84896092,0.00033937,7]
[391793993,1760830232205,-500.0,0.00033937,7]
[391793994,1760830232215,-500.0,0.00033937,7]
[391793995,1760830232224,-500.0,0.00033937,7]
[391793996,1760830232234,-476.20271978,0.00033938,2]
[391793997,1760830232244,-300.0,0.00033938,2]
[391793998,1760830232255,-3889.74982518,0.00033938,2]
[391793999,1760830232264,-811.55664884,0.00033938,2]
[391794000,1760830232274,-258.79226877,0.00033938,2]
[391794001,1760830232287,-297.55730405,0.00033938,2]
[391794002,1760830232297,-327.75724105,0.00033938,2]
[391794003,1760830232306,-292.51551663,0.00033938,2]
[391794004,1760830232316,-638.69543158,0.00033938,2]
[391794005,1760830232326,-1364.94850139,0.00033938,2]
[391794006,1760830232335,-156.97728489,0.00033938,2]
[391794007,1760830232344,-790.48818897,0.00033938,2]
[391794008,1760830232354,-6307.06824815,0.00033938,2]
[391794009,1760830232364,-157.97887992,0.00033938,2]
[391794010,1760830232374,-9734.33533056,0.00033938,2]
[391794011,1760830232383,-1720.78411161,0.00033938,2]
[391794012,1760830232392,-2080.87877868,0.00033938,2]
[391794013,1760830232402,-1002.96067699,0.00033938,2]
[391794014,1760830232411,-508.71754747,0.00033938,2]
[391794015,1760830232420,-468.89730775,0.00033938,2]
[391794016,1760830232430,-179.69882113,0.00033938,2]
[391794017,1760830232440,-563.71522327,0.00033938,2]
[391794028,1760830237804,-507.7,0.0003306,2]
[391794030,1760830237813,-29946.85525143,0.00033938,2]
[391794032,1760830237823,-189.5913888,0.00033938,2]
[391794033,1760830237832,-1400.04522313,0.00033938,2]
[391794034,1760830237842,-5908.78533045,0.00033938,2]
[391794035,1760830237851,-10704.78603085,0.00033938,2]
[391794036,1760830237861,-652.64378413,0.00033938,2]
[391794037,1760830237870,-203.4235005,0.00033938,2]
[391794039,1760830237879,-2920.0,0.00033938,2]
[391794041,1760830237889,-10747.14736084,0.00033938,2]
[391794042,1760830237898,-385.70784611,0.00033938,2]
[391794043,1760830237907,-1445.87279266,0.00033938,2]
[391794044,1760830237917,-201.79425047,0.00033938,2]
[391794045,1760830237926,-3153.95038712,0.00033938,2]
[391794046,1760830237936,-365.44240343,0.00033938,2]
[391794047,1760830237945,-166.94066072,0.00033938,2]
[391794048,1760830237955,-150.67495818,0.00033938,2]
[391794049,1760830237964,-100463.51233001,0.00033938,2]
[391794050,1760830237974,-259.1112089,0.00033938,2]
[391794051,1760830237987,-3774.02654877,0.00033938,2]
[391794052,1760830237997,-27026.00095714,0.00033938,2]
[391794053,1760830238007,-425.7,0.00034,2]
[391794054,1760830238016,-564.11,0.000342,2]
[391794055,1760830238026,-411.0,0.00034282,2]
[391794056,1760830238038,-287.2411812,0.00037,120]
[391794057,1760830238048,-10917.59087152,0.00037125,3]
[391794058,1760830238061,-411.0,0.00037282,2]
[391794059,1760830238071,-900.0,0.00037526,7]
[391794060,1760830238080,-900.0,0.00038348,7]
[391794061,1760830238090,-1728.52929163,0.0003899,2]
[391794062,1760830238099,-900.0,0.0003917,7]
[391794063,1760830238108,-370000.0,0.00039344,2]
[391794064,1760830238118,-7587.01842003,0.00039373,2]
[391794065,1760830238127,-7294.63,0.000394,14]
[391794066,1760830238136,-14809.5396608,0.00039434,3]
[391794067,1760830238147,-1999.0,0.00039443,120]
[391794068,1760830238156,-553.64373807,0.00039443,7]
[391794069,1760830238166,-574.12855637,0.00039443,7]
[391794070,1760830238176,-595.37131296,0.00039443,7]
[391794071,1760830238187,-617.40005154,0.00039443,7]
[391794072,1760830238196,-640.24385345,0.00039443,7]
[391794073,1760830238206,-663.93287602,0.00039443,7]
[391794074,1760830238216,-688.49839244,0.00039443,7]
[391794075,1760830238227,-713.97283296,0.00039443,7]
[391794076,1760830238237,-740.38982778,0.00039443,7]
[391794077,1760830238246,-767.7842514,0.00039443,7]
[391794078,1760830238256,-796.19226871,0.00039443,7]
[391794079,1760830238266,-825.65138265,0.00039443,7]
[391794080,1760830238276,-151.0,0.00039444,120]
[391794081,1760830238285,-1139576.8932,0.00039444,7]
[391794082,1760830238295,-500.0,0.00039473,2]
[391794083,1760830238305,-2880.83,0.000395,40]
[391794084,1760830238314,-4118.32,0.000395,14]
[391794085,1760830238324,-251.10903661,0.000396,7]
[391794086,1760830238334,-168.0,0.00039623,120]
[391794087,1760830238344,-439.371994,0.00039654,2]
[391794088,1760830238354,-1600.0,0.000398,120]
[391794089,1760830238364,-188.0,0.00039873,2]
[391794090,1760830238373,-1635.0,0.0003989,120]
[391794091,1760830238382,-309.14,0.00039923,30]
[391794092,1760830238392,-168.0,0.00039941,2]
[391794093,1760830238402,-168.0,0.00039979,2]
[391794094,1760830238411,-168.0,0.00039983,2]
[391794095,1760830238421,-900.0,0.00039992,7]
[391794096,1760830238430,-405.2054401,0.00039999,31]
[391794097,1760830238441,-1378815.34339343,0.0004,7]
[391794098,1760830238450,-200.0,0.0004,120]
[391794099,1760830238460,-280.0,0.0004,7]
[391794100,1760830238470,-5015.0,0.0004,120]
[391794101,1760830238480,-5000.0,0.0004,120]
[391794102,1760830238490,-4998.28493918,0.0004,120]
[391794103,1760830238499,-200.0,0.0004,120]
[391794104,1760830238508,-7000.0,0.0004,30]
[391794105,1760830238518,-200.0,0.0004,30]
[391794106,1760830238527,-497.43205113,0.0004,30]
[391794107,1760830238537,-1000.0,0.0004,120]
[391794108,1760830238546,-181394.13586599,0.0004,7]
[391794109,1760830238556,-850.0,0.0004,60]
[391794110,1760830238566,-500.0,0.0004,120]
[391794111,1760830238575,-500.0,0.0004,2]
[391794112,1760830238584,-1137.43864593,0.0004,120]
[391794113,1760830238593,-513359.99353755,0.0004,7]
[391794114,1760830239393,-88180.130611,0.0004,7]
[391794115,1760830240066,-271.35708111,0.0004,7]
[391794118,1760830240474,-46750.0,0.0004,7]
[391794143,1760830247337,-16863.42118,0.0004,7]
[391794144,1760830247349,-3830.63008299,0.0004,7]
[391794145,1760830247358,-32942.14981885,0.0004,7]
[391794146,1760830273787,480.13073422,0.00033938,120]
[391794148,1760830613408,5000.0,0.000182,30]
[391794149,1760830725658,4850.01,0.00014,10]
[391794150,1760830725680,149.99,0.00014,10]
[391794151,1760830757348,5000.0,0.000182,30]
[391794152,1760830809358,157.0,9.3e-07,2]
[391794167,1760831051997,350.526586,0.00013699,2]
[391794168,1760831052203,350.526586,0.00020187,2]
[391794205,1760831149223,-350.526586,0.00026676,2]
[391794206,1760831149245,-855.0,0.00029225,2]
[391794207,1760831149266,-402.78104431,0.00029225,2]
[391794208,1760831149287,-5000.0,0.00029226,2]
[391794209,1760831149308,-180.00641475,0.000299,2]
[391794210,1760831149328,-300.0,0.00029997,2]
[391794211,1760831149348,-300.0,0.00029997,2]
[391794212,1760831149368,-300.0,0.00029997,2]
[391794213,1760831149388,-300.0,0.00029997,2]
[391794214,1760831149408,-1200.0,0.00029998,2]
[391794215,1760831149427,-2591.67238768,0.0003,3]
[391794216,1760831149447,-420.0,0.0003233,2]
[391794217,1760831149466,-1200.0,0.00032331,3]
[391794218,1760831149485,-350.526586,0.00033165,2]
[391794219,1760831149504,-411.0,0.00034337,2]
[391794220,1760831149523,-1950.83339572,0.00034337,2]
[391794221,1760831149541,-480.0,0.00034845,2]
[391794222,1760831149560,-380.0,0.00035087,2]
[391794223,1760831149578,-160.0,0.00035743,2]
[391794224,1760831149602,-150.0,0.00035764,2]
[391794225,1760831149625,-666.0,0.00035843,2]
[391794226,1760831149647,-168.0,0.00036482,2]
[391794227,1760831149669,-168.0,0.00036545,2]
[391794228,1760831149690,-168.0,0.00036844,2]
[391794229,1760831149710,-168.0,0.00036965,2]
[391794230,1760831149731,-168.0,0.00037277,2]
[391794231,1760831149753,-168.0,0.00037324,2]
[391794232,1760831149773,-411.0,0.00037337,2]
[391794233,1760831149795,-150.0,0.00037467,2]
[391794234,1760831149815,-160.0,0.00037778,3]
[391794235,1760831149836,-158.14058,0.00038025,2]
[391794236,1760831149861,-168.0,0.00038101,2]
[391794237,1760831149884,-168.0,0.00038127,2]
[391794238,1760831149904,-700.0,0.00038356,7]
[391794239,1760831149925,-168.0,0.00038485,2]
[391794240,1760831149947,-168.0,0.00039047,2]
[391794241,1760831149975,-150.0,0.0003917,2]
[391794243,1760831149994,-700.0,0.00039178,7]
[391794244,1760831150017,-168.0,0.00039204,2]
[391794245,1760831150039,-168.0,0.00039238,2]
[391794246,1760831150061,-798.0,0.0003925,120]
[391794247,1760831150087,-168.0,0.00039282,2]
[391794248,1760831150109,-151.0,0.000393,18]
[391794249,1760831150130,-1999.0,0.00039343,120]
[391794250,1760831150151,-173.2851303,0.00039343,2]
[391794251,1760831150171,-38561.70291124,0.00039344,2]
[391794273,1760831233124,-150.0,0.00038517,2]
[391794274,1760831233146,-1041.8613558,0.00038807,2]
[391794275,1760831233169,-49250.6941092,0.00039344,2]
[391794276,1760831234100,-846.1878918,0.00036084,2]
[391794277,1760831234128,-95066.7816072,0.00039344,2]
[391794368,1760831432121,-411.0,0.00034337,2]
[391794369,1760831432132,-411.0,0.00037337,2]
[391794370,1760831432142,-150.0,0.00038112,2]
[391794371,1760831432152,-600.0,0.00038356,7]
[391794372,1760831432163,-600.0,0.00039178,7]
[391794373,1760831432172,-1999.0,0.00039343,120]
[391794374,1760831432181,-173.2851303,0.00039343,2]
[391794375,1760831432190,-6312.7114807,0.00039344,2]
[391794376,1760831432202,-3105.83339572,0.00039344,2]
[391794384,1760831437945,-2212.88099178,0.00039344,2]
[391794431,1760831440162,-5604.728385,0.00039344,2]
[391794689,1760831443342,-72549.907296,0.00039344,2]
[391794723,1760831480240,417.15472785,0.00024142,2]
[391794726,1760832402510,417.15472785,0.00024142,2]
[391794727,1760832450133,-5000.0,0.00024703,2]
[391794728,1760832450158,-150.0,0.00025674,2]
[391794729,1760832450178,-347.06201387,0.00026748,5]
[391794730,1760832450198,-1200.0,0.00026848,2]
[391794731,1760832450218,-300.0,0.00026859,2]
[391794732,1760832450237,-193.7292406,0.0002686,2]
[391794733,1760832450256,-300.0,0.00027899,2]
[391794734,1760832450275,-300.0,0.00027899,2]
[391794735,1760832450294,-300.0,0.00027899,2]
[391794736,1760832450314,-500.0,0.00027899,2]
[391794737,1760832450336,-500.0,0.00027899,2]
[391794738,1760832450358,-500.0,0.00027899,2]
[391794739,1760832450378,-500.0,0.00027899,2]
[391794740,1760832450399,-500.0,0.00027899,2]
[391794741,1760832450420,-500.0,0.00027899,2]
[391794742,1760832450441,-500.0,0.00027899,2]
[391794743,1760832450462,-500.0,0.00027899,2]
[391794744,1760832450482,-547.42959641,0.00027899,2]
[391794745,1760832450502,-429.35891819,0.00027899,2]
[391794746,1760832450524,-500.0,0.00027899,2]
[391794747,1760832450545,-500.0,0.00027899,2]
[391794748,1760832450565,-500.0,0.00027899,2]
[391794749,1760832450586,-500.0,0.00027899,2]
[391794750,1760832450605,-500.0,0.00027899,2]
[391794751,1760832450627,-500.0,0.00027899,2]
[391794752,1760832450646,-500.0,0.00027899,2]
[391794753,1760832450667,-500.0,0.00027899,2]
[391794754,1760832450687,-500.0,0.00027899,2]
[391794755,1760832450708,-500.0,0.00027899,2]
[391794756,1760832450728,-500.0,0.00027899,2]
[391794757,1760832450749,-500.0,0.00027899,2]
[391794758,1760832450769,-500.0,0.00027899,2]
[391794759,1760832450792,-500.0,0.00027899,2]
[391794760,1760832450816,-500.0,0.00027899,2]
[391794761,1760832450839,-305.47312003,0.00027899,2]
[391794762,1760832450863,-500.0,0.00027899,2]
[391794763,1760832450887,-500.0,0.00027899,2]
[391794764,1760832450908,-500.0,0.00027899,2]
[391794765,1760832450931,-500.0,0.00027899,2]
[391794766,1760832450957,-500.0,0.00027899,2]
[391794767,1760832450978,-473.53346878,0.000279,2]
[391794768,1760832450998,-265.13073874,0.000279,2]
[391794769,1760832451017,-217.23489934,0.000279,2]
[391794770,1760832451036,-164.06131555,0.000279,2]
[391794771,1760832451058,-2237.03583563,0.000279,2]
[391794772,1760832451076,-527.74046386,0.000279,2]
[391794773,1760832451230,-695.6798062,0.000279,2]
[391794774,1760832451253,-412.32159071,0.000279,2]
[391794775,1760832451275,-160.0,0.000279,2]
[391794776,1760832451299,-167.98528681,0.000279,2]
[391794777,1760832451318,-27106.22370528,0.000279,2]
[391794972,1760832637948,-300.0,0.00027899,2]
[391794974,1760832637958,-1200.0,0.00027899,2]
[391794976,1760832637967,-2918.58889803,0.000279,2]
[391794978,1760832637977,-609.8006991,0.000279,2]
[391794980,1760832637986,-164.06131555,0.000279,2]
[391794982,1760832637995,-422.19237109,0.000279,2]
[391794984,1760832638005,-2572.59121097,0.000279,2]
[391794986,1760832638014,-556.54384496,0.000279,2]
[391794988,1760832638024,-329.85727257,0.000279,2]
[391794990,1760832638033,-160.0,0.000279,2]
[391794991,1760832638042,-167.98528681,0.000279,2]
[391794992,1760832638052,-3750.99810914,0.000279,2]
[391794993,1760832638064,-173.53132208,0.000279,2]
[391794994,1760832638081,-366.82346185,0.00028096,2]
[391794995,1760832638094,-1200.0,0.00028199,2]
[391794996,1760832638104,-158.81765758,0.00028199,2]
[391794997,1760832638114,-394.15884405,0.00028199,2]
[391794998,1760832638124,-500.0,0.00028199,2]
[391794999,1760832638135,-645.05256889,0.00028199,2]
[391795000,1760832638145,-2918.58889803,0.000282,2]
[391795001,1760832638155,-609.8006991,0.000282,2]
[391795002,1760832638165,-164.06131555,0.000282,2]
[391795003,1760832638175,-369.61533828,0.000282,2]
[391795004,1760832638187,-52.57703281,0.000282,2]
[391795005,1760832638197,-2572.59121097,0.000282,2]
[391795006,1760832638207,-556.54384496,0.000282,2]
[391795007,1760832638217,-329.85727257,0.000282,2]
[391795008,1760832638227,-173.2851303,0.000283,2]
[391795009,1760832638237,-2918.58889803,0.000284,2]
[391795010,1760832638246,-609.8006991,0.000284,2]
[391795011,1760832638255,-164.06131555,0.000284,2]
[391795012,1760832638265,-422.19237109,0.000284,2]
[391795013,1760832638275,-2572.59121097,0.000284,2]
[391795014,1760832638284,-556.54384496,0.000284,2]
[391795015,1760832638296,-329.85727257,0.000284,2]
[391795016,1760832638307,-2918.58889803,0.000287,2]
[391795017,1760832638316,-609.8006991,0.000287,2]
[391795018,1760832638326,-164.06131555,0.000287,2]
[391795019,1760832638335,-422.19237109,0.000287,2]
[391795020,1760832638347,-2572.59121097,0.000287,2]
[391795021,1760832638356,-556.54384496,0.000287,2]
[391795022,1760832638365,-329.85727257,0.000287,2]
[391795023,1760832638376,-2918.58889803,0.00029,2]
[391795024,1760832638385,-609.8006991,0.00029,2]
[391795025,1760832638395,-422.19237109,0.00029,2]
[391795026,1760832638405,-2572.59121097,0.00029,2]
[391795027,1760832638415,-556.54384496,0.00029,2]
[391795028,1760832638424,-329.85727257,0.00029,2]
[391795029,1760832638434,-366.82346185,0.0002912,6]
[391795030,1760832638443,-366.82346185,0.0002912,6]
[391795031,1760832638453,-2918.58889803,0.000293,2]
[391795032,1760832638463,-2572.59121097,0.000293,2]
[391795033,1760832638473,-2918.58889803,0.000296,2]
[391795034,1760832638483,-2572.59121097,0.000296,2]
[391795035,1760832638492,-2918.58889803,0.000299,2]
[391795036,1760832638502,-2572.59121097,0.000299,2]
[391795037,1760832638512,-420.0,0.00030134,2]
[391795038,1760832638522,-366.82346185,0.00030143,10]
[391795039,1760832638537,-366.82346185,0.00030143,10]
[391795040,1760832638548,-2918.58889803,0.000302,2]
[391795041,1760832638558,-2572.59121097,0.000302,2]
[391795042,1760832638568,-460.0,0.00030266,2]
[391795043,1760832638578,-1200.0,0.00030449,2]
[391795044,1760832638588,-2918.58889803,0.000305,2]
[391795045,1760832638599,-2572.59121097,0.000305,2]
[391795046,1760832638609,-366.82346185,0.00031166,14]
[391795047,1760832638619,-386.37,0.00032173,7]
[391795048,1760832638629,-366.82346185,0.0003219,18]
[391795049,1760832638638,-366.82346185,0.0003219,18]
[391795050,1760832638648,-587.0,0.00032548,2]
[391795051,1760832638658,-173.2851303,0.0003255,2]
[391795052,1760832638668,-162.09625358,0.00032877,2]
[391795053,1760832638678,-200.0,0.00033921,120]
[391795054,1760832638687,-265.76332504,0.00033968,2]
[391795055,1760832638697,-411.0,0.00034377,2]
[391795056,1760832638706,-200.0,0.00034415,120]
[391795057,1760832638717,-209.35919193,0.00034849,120]
[391795058,1760832638727,-593.0,0.00035156,2]
[391795059,1760832638736,-300.0,0.0003536,30]
[391795060,1760832638746,-300.0,0.0003536,30]
[391795061,1760832638756,-300.0,0.0003536,30]
[391795062,1760832638766,-300.0,0.0003536,30]
[391795063,1760832638776,-300.0,0.0003536,30]
[391795064,1760832638785,-300.0,0.0003536,30]